[Event "26th Abu Dhabi Master 2019"]
[Site "Abu Dhabi"]
[Date "2019.08.05"]
[Round "5.67"]
[White "Ammar, Sedrani"]
[Black "Aakanksha Hagawane"]
[Result "0-1"]
[ECO "A45"]
[WhiteElo "2024"]
[BlackElo "2246"]
[Annotator "NA"]
[PlyCount "108"]
[EventDate "2019.08.02"]
[EventType "swiss"]
[EventCountry "UAE"]
[SourceTitle "playchess.com"]
[Source "ChessBase"]
[SourceQuality "1"]
[TimeControl "5400+30"]

1. d4 Nf6 2. Bg5 Ne4 3. Bf4 c5 4. f3 Qa5+ 5. c3 Nf6 6. Nd2 cxd4 7. Nb3 Qd8 8. Bxb8 Rxb8 9. Qxd4 a6 10. Qa7 Qc7 11. e4 Qe5 12. Ne2 d5 13. f4 Qc7 14. e5 Nd7 15. Qe3 e6 16. Ned4 Be7 17. Bd3 b5 18. O-O Qb6 19. Kh1 O-O 20. Rae1 Re8 21. g4 Bf8 22. a3 Bb7 23. Qg3 Nc5 24. Nxc5 Bxc5 25. Qh3 Bxd4 26. cxd4 h6 27. Qe3 b4 28. g5 g6 29. gxh6 Kh7 30. axb4 Qxb4 31. f5 exf5 32. Bxf5 Qe7 33. Qg3 Rg8 34. Bd3 Bc8 35. Rf6 Rxb2 36. Ref1 Be6 37. h4 Kh8 38. Rg1 Rb3 39. Rf3 Qd8 40. Qf4 a5 41. h5 g5 42. Qg3 g4 43. Rf6 a4 44. Qe3 a3 45. Qd2 Rb2 46. Qc1 g3 47. Rg2 Qc8 48. Rc2 Rxc2 49. Bxc2 Qc3 50. h7 g2+ 51. Kg1 Qxd4+ 52. Rf2 Qxf2+ 53. Kxf2 g1=Q+ 54. Qxg1 Rxg1 0-1

[Event "26th Abu Dhabi Master 2019"]
[Site "Abu Dhabi"]
[Date "2019.08.05"]
[Round "5.68"]
[White "Ayyad, Husain"]
[Black "Mrudul Dehankar"]
[Result "1-0"]
[ECO "B01"]
[WhiteElo "2231"]
[BlackElo "2074"]
[Annotator "NA"]
[PlyCount "126"]
[EventDate "2019.08.02"]
[EventType "swiss"]
[EventCountry "UAE"]
[SourceTitle "playchess.com"]
[Source "ChessBase"]
[SourceQuality "1"]
[TimeControl "5400+30"]

1. e4 d5 2. exd5 Nf6 3. d4 Bg4 4. Be2 Bxe2 5. Qxe2 Qxd5 6. Nf3 e6 7. O-O Nc6 8. Rd1 O-O-O 9. c4 Qh5 10. Bf4 Rg8 11. Nc3 g5 12. Bg3 g4 13. Ne5 Nxd4 {[%emt 0:39:21]} 14. Qe3 {[%emt 1:01:35]} Bc5 {[%emt 0:24:20]} 15. Qf4 {[%emt 0:00:07]} Qf5 {[%emt 0:10:44]} 16. Nxf7 {[%emt 0:04:31]} Qxf4 {[%emt 0:02:08]} 17. Bxf4 {[%emt 0:00:01]} Rdf8 18. Ne5 {[%emt 0:08:47]} Nf5 {[%emt 0:04:50]} 19. Nd3 {[%emt 0:08:41]} Bd6 20. Re1 Re8 {[%emt 0:05:39]} 21. c5 {[%emt 0:11:00]} Bxf4 {[%emt 0:02:37]} 22. Nxf4 {[%emt 0:00:01]} Nd4 {[%emt 0:01:44]} 23. Rad1 {[%emt 0:01:33]} e5 {[%emt 0:01:21]} 24. Nfd5 {[%emt 0:01:49]} Nxd5 {[%emt 0:02:38]} 25. Nxd5 {[%emt 0:00:02]} Rgf8 {[%emt 0:00:30]} 26. Re4 {[%emt 0:00:09]} h5 {[%emt 0:00:08]} 27. Rde1 {[%emt 0:00:15]} Nc6 {[%emt 0:04:18]} 28. Ne3 {[%emt 0:03:43]} Rd8 {[%emt 0:02:30]} 29. Nc4 {[%emt 0:00:22]} Rd5 30. Nxe5 Re8 {[%emt 0:01:32]} 31. f4 {[%emt 0:00:35]} gxf3 {[%emt 0:00:07]} 32. Nxf3 {[%emt 0:00:03]} Rxe4 {[%emt 0:00:10]} 33. Rxe4 {[%emt 0:00:02]} Rxc5 34. Kf2 {[%emt 0:00:22]} Kd7 {[%emt 0:00:53]} 35. Re2 {[%emt 0:00:59]} Ne7 {[%emt 0:00:52]} 36. h3 {[%emt 0:00:56]} Ng6 {[%emt 0:00:40]} 37. g4 {[%emt 0:00:18]} hxg4 {[%emt 0:00:38]} 38. hxg4 {[%emt 0:00:01]} a5 {[%emt 0:00:43]} 39. Kg3 {[%emt 0:00:16]} b5 {[%emt 0:00:28]} 40. Rd2+ {[%emt 0:00:22]} Ke7 {[%emt 0:00:14]} 41. Nd4 {[%emt 0:00:42]} Kf6 {[%emt 0:00:48]} 42. Rf2+ {[%emt 0:00:35]} Ke5 {[%emt 0:00:24]} 43. Nb3 {[%emt 0:00:09]} Rc4 {[%emt 0:00:30]} 44. Nxa5 {[%emt 0:01:35]} Ra4 {[%emt 0:00:33]} 45. Nc6+ {[%emt 0:00:14]} Ke6 {[%emt 0:00:33]} 46. b3 {[%emt 0:00:34]} Re4 {[%emt 0:00:30]} 47. Re2 {[%emt 0:01:43]} Rxe2 {[%emt 0:00:30]} 48. Nd4+ {[%emt 0:00:01]} Ke5 {[%emt 0:00:24]} 49. Nxe2 {[%emt 0:00:01]} c5 {[%emt 0:00:28]} 50. Kf3 {[%emt 0:00:11]} Kd5 {[%emt 0:00:37]} 51. Nc3+ {[%emt 0:00:11]} Kc6 {[%emt 0:00:23]} 52. Ke4 {[%emt 0:00:02]} b4 {[%emt 0:00:44]} 53. Nd5 {[%emt 0:00:08]} Kd6 {[%emt 0:00:16]} 54. Nf4 {[%emt 0:00:55]} Ne7 {[%emt 0:00:04]} 55. g5 {[%emt 0:00:09]} Ng8 {[%emt 0:00:32]} 56. Kf5 {[%emt 0:00:23]} Ne7+ {[%emt 0:00:07]} 57. Kf6 {[%emt 0:00:13]} Ng8+ {[%emt 0:00:11]} 58. Kf7 {[%emt 0:00:12]} Ne7 {[%emt 0:00:07]} 59. Nd3 {[%emt 0:01:46]} Nf5 {[%emt 0:00:43]} 60. g6 {[%emt 0:00:50]} Kd5 {[%emt 0:01:45]} 61. g7 {[%emt 0:01:24]} Kd4 {[%emt 0:00:35]} 62. Nb2 {[%emt 0:00:35]} Kc3 {[%emt 0:00:33]} 63. Na4+ {[%emt 0:00:08]} Kd4 {[%emt 0:00:30]} 1-0

[Event "26th Abu Dhabi Master 2019"]
[Site "Abu Dhabi"]
[Date "2019.08.05"]
[Round "5.69"]
[White "Srihari L R"]
[Black "Arjun C Krishnamachari"]
[Result "1-0"]
[ECO "A05"]
[WhiteElo "2227"]
[BlackElo "2212"]
[Annotator "NA"]
[PlyCount "107"]
[EventDate "2019.08.02"]
[EventType "swiss"]
[EventCountry "UAE"]
[SourceTitle "playchess.com"]
[Source "ChessBase"]
[SourceQuality "1"]
[TimeControl "5400+30"]

1. Nf3 {[%emt 0:02:28]} Nf6 {[%emt 0:01:37]} 2. g3 {[%emt 0:00:10]} g6 {[%emt 0:00:41]} 3. b3 {[%emt 0:00:56]} Bg7 {[%emt 0:01:49]} 4. Bb2 {[%emt 0:00:26]} O-O {[%emt 0:00:08]} 5. Bg2 {[%emt 0:00:08]} c5 {[%emt 0:01:08]} 6. c4 {[%emt 0:01:42]} Nc6 {[%emt 0:00:38]} 7. O-O {[%emt 0:00:36]} d6 {[%emt 0:00:26]} 8. d4 {[%emt 0:00:55]} Ne8 {[%emt 0:09:44]} 9. Qd2 {[%emt 0:16:39]} cxd4 {[%emt 0:14:30]} 10. Nxd4 {[%emt 0:00:09]} Bd7 {[%emt 0:00:15]} 11. e3 {[%emt 0:06:56]} Kh8 {[%emt 0:19:19]} 12. Nc3 {[%emt 0:07:04]} Qa5 {[%emt 0:03:51]} 13. Rad1 {[%emt 0:02:11]} Nf6 {[%emt 0:02:40]} 14. Nde2 {[%emt 0:11:47]} Rab8 {[%emt 0:08:10]} 15. e4 {[%emt 0:05:43]} Ne5 {[%emt 0:06:00]} 16. Nd4 {[%emt 0:05:42]} Nc6 {[%emt 0:03:25]} 17. Nc2 {[%emt 0:09:38]} Qh5 {[%emt 0:03:11]} 18. f3 {[%emt 0:06:23]} Bh3 {[%emt 0:05:25]} 19. Ne3 {[%emt 0:04:53]} Bxg2 {[%emt 0:03:08]} 20. Kxg2 {[%emt 0:00:55]} Qa5 {[%emt 0:00:30]} 21. Rfe1 {[%emt 0:02:29]} a6 {[%emt 0:05:24]} 22. Ncd5 {[%emt 0:03:37]} Qxd2+ {[%emt 0:02:03]} 23. Rxd2 {[%emt 0:00:03]} Nxd5 {[%emt 0:00:02]} 24. Bxg7+ {[%emt 0:01:30]} Kxg7 {[%emt 0:00:07]} 25. exd5 {[%emt 0:02:12]} Ne5 {[%emt 0:00:41]} 26. f4 {[%emt 0:00:43]} Nd7 {[%emt 0:00:07]} 27. Rde2 {[%emt 0:00:10]} Rfe8 {[%emt 0:02:24]} 28. Nc2 {[%emt 0:00:35]} Kf8 {[%emt 0:00:07]} 29. Nd4 {[%emt 0:00:15]} Rbc8 {[%emt 0:00:53]} 30. Kf3 {[%emt 0:00:20]} Nc5 {[%emt 0:01:13]} 31. g4 {[%emt 0:01:42]} Rc7 {[%emt 0:01:09]} 32. h4 {[%emt 0:00:37]} Kg7 {[%emt 0:03:35]} 33. g5 {[%emt 0:00:34]} Kf8 {[%emt 0:01:01]} 34. h5 {[%emt 0:00:44]} Kg7 {[%emt 0:00:53]} 35. Rh1 {[%emt 0:02:51]} Rh8 {[%emt 0:00:41]} 36. h6+ {[%emt 0:00:46]} Kf8 {[%emt 0:00:09]} 37. Rhe1 {[%emt 0:00:34]} Ke8 {[%emt 0:00:01]} 38. Ke3 {[%emt 0:00:42]} Kd8 {[%emt 0:00:52]} 39. Kd2 {[%emt 0:00:18]} Rf8 {[%emt 0:00:48]} 40. Kc3 {[%emt 0:02:35]} Re8 {[%emt 0:00:30]} 41. Re3 {[%emt 0:01:04]} Nd7 {[%emt 0:00:23]} 42. a4 {[%emt 0:00:26]} Nb6 {[%emt 0:00:15]} 43. Kb4 {[%emt 0:00:24]} Nd7 {[%emt 0:00:40]} 44. a5 {[%emt 0:00:22]} Nc5 {[%emt 0:00:32]} 45. Kc3 {[%emt 0:00:16]} Nd7 {[%emt 0:00:37]} 46. b4 {[%emt 0:00:08]} Rc8 {[%emt 0:00:37]} 47. R3e2 {[%emt 0:01:03]} b5 {[%emt 0:00:35]} 48. axb6 {[%emt 0:00:38]} Nxb6 {[%emt 0:00:15]} 49. Nc6+ {[%emt 0:00:04]} Rxc6 {[%emt 0:00:42]} 50. dxc6 {[%emt 0:00:05]} e6 {[%emt 0:00:08]} 51. Ra2 {[%emt 0:00:31]} Kc7 {[%emt 0:00:00]} 52. Rxa6 {[%emt 0:00:09]} Kxc6 {[%emt 0:00:05]} 53. Ra7 {[%emt 0:00:05]} Rf8 {[%emt 0:01:19]} 54. b5+ {[%emt 0:00:07] Kd5} 1-0

[Event "26th Abu Dhabi Master 2019"]
[Site "Abu Dhabi"]
[Date "2019.08.05"]
[Round "5.70"]
[White "Soham Datar"]
[Black "Ajay Karthikeyan"]
[Result "1/2-1/2"]
[ECO "A45"]
[WhiteElo "2129"]
[BlackElo "2216"]
[Annotator "NA"]
[PlyCount "61"]
[EventDate "2019.08.02"]
[EventType "swiss"]
[EventCountry "UAE"]
[SourceTitle "playchess.com"]
[Source "ChessBase"]
[SourceQuality "1"]
[TimeControl "5400+30"]

1. d4 Nf6 2. g3 c5 3. Nf3 cxd4 4. Nxd4 d5 5. Bg2 e5 6. Nb3 h6 7. O-O Nc6 8. Nc3 Be6 9. Na4 Bd6 10. Nac5 Qe7 11. Nxe6 Qxe6 12. c4 dxc4 13. Nd2 O-O 14. Qa4 Nd4 15. Qxc4 Qxc4 16. Nxc4 Nxe2+ 17. Kh1 Bc5 18. Bxb7 Rab8 19. Bg2 Bd4 20. Be3 Rfc8 21. Bxd4 exd4 22. b3 Nc3 23. Ne5 Rb6 24. Bf3 g6 25. Kg2 Kg7 26. Rac1 Re8 27. Nc4 Ra6 28. a4 Rb8 29. Nd2 Nd7 30. Rfe1 Re6 31. Bg4 1/2-1/2

[Event "26th Abu Dhabi Master 2019"]
[Site "Abu Dhabi"]
[Date "2019.08.05"]
[Round "5.71"]
[White "Haase, Pavel"]
[Black "Asaka, Samuel"]
[Result "0-1"]
[ECO "A01"]
[WhiteElo "2160"]
[BlackElo "2201"]
[Annotator "NA"]
[PlyCount "68"]
[EventDate "2019.08.02"]
[EventType "swiss"]
[EventCountry "UAE"]
[SourceTitle "playchess.com"]
[Source "ChessBase"]
[SourceQuality "1"]
[TimeControl "5400+30"]

1. b3 {[%emt 0:00:00]} e5 {[%emt 0:01:04]} 2. Bb2 {[%emt 0:00:00]} Nc6 {[%emt 0:00:05]} 3. e3 {[%emt 0:00:32]} d5 {[%emt 0:00:11]} 4. Bb5 {[%emt 0:01:25]} Bd6 {[%emt 0:00:12]} 5. Nf3 {[%emt 0:00:37]} Qe7 {[%emt 0:00:21]} 6. d4 {[%emt 0:02:42]} e4 {[%emt 0:00:17]} 7. Ne5 {[%emt 0:02:10]} Qg5 {[%emt 0:01:02]} 8. Nxc6 {[%emt 0:27:15]} Qxg2 {[%emt 0:02:07]} 9. Ne5+ {[%emt 0:01:15]} c6 {[%emt 0:01:20]} 10. Rf1 {[%emt 0:01:04]} cxb5 {[%emt 0:01:19]} 11. Qe2 {[%emt 0:05:16]} a6 {[%emt 0:02:40]} 12. Nc3 {[%emt 0:02:14]} Ne7 {[%emt 0:37:26]} 13. O-O-O {[%emt 0:05:09]} O-O {[%emt 0:03:57]} 14. Rg1 {[%emt 0:09:04]} Qh3 {[%emt 0:00:12]} 15. f4 {[%emt 0:15:19]} exf3 {[%emt 0:05:31]} 16. Qxf3 {[%emt 0:00:58]} Qxf3 {[%emt 0:02:54]} 17. Nxf3 {[%emt 0:00:07]} Bf5 {[%emt 0:06:33]} 18. Rd2 {[%emt 0:06:02]} Rac8 {[%emt 0:09:35]} 19. Rdg2 {[%emt 0:02:12]} Rc7 {[%emt 0:03:33]} 20. e4 {[%emt 0:07:43]} Bg6 {[%emt 0:07:19]} 21. e5 {[%emt 0:03:54]} Bb4 {[%emt 0:00:12]} 22. Nd1 {[%emt 0:00:11]} Be4 {[%emt 0:02:43]} 23. Rf2 {[%emt 0:04:52]} f6 {[%emt 0:00:28]} 24. c3 {[%emt 0:01:21]} fxe5 {[%emt 0:00:22]} 25. Nxe5 {[%emt 0:00:07]} Rxf2 {[%emt 0:01:02]} 26. Nxf2 {[%emt 0:00:01]} Bxc3 {[%emt 0:00:50]} 27. Bxc3 {[%emt 0:00:22]} Rxc3+ {[%emt 0:00:09]} 28. Kd1 {[%emt 0:00:10]} Nc6 {[%emt 0:03:25]} 29. Nxe4 {[%emt 0:00:45]} dxe4 {[%emt 0:00:12]} 30. Re1 {[%emt 0:01:13]} Nxe5 {[%emt 0:00:59]} 31. dxe5 {[%emt 0:00:04]} e3 {[%emt 0:00:08]} 32. Ke2 {[%emt 0:00:21]} Kf7 {[%emt 0:00:21]} 33. Kf3 {[%emt 0:00:06]} Ke6 {[%emt 0:00:22]} 34. Ke4 {[%emt 0:00:11]} Rc5 {[%emt 0:00:07]} 0-1

[Event "26th Abu Dhabi Master 2019"]
[Site "Abu Dhabi"]
[Date "2019.08.05"]
[Round "5.72"]
[White "Priyanka, K."]
[Black "Srihari L"]
[Result "1-0"]
[ECO "B32"]
[WhiteElo "2201"]
[BlackElo "2101"]
[Annotator "NA"]
[PlyCount "47"]
[EventDate "2019.08.02"]
[EventType "swiss"]
[EventCountry "UAE"]
[SourceTitle "playchess.com"]
[Source "ChessBase"]
[SourceQuality "1"]
[TimeControl "5400+30"]

1. e4 {[%emt 0:00:09]} c5 {[%emt 0:00:00]} 2. Nf3 {[%emt 0:00:07]} Nc6 {[%emt 0:00:00]} 3. d4 {[%emt 0:00:13]} cxd4 {[%emt 0:00:00]} 4. Nxd4 {[%emt 0:00:04]} e5 {[%emt 0:00:00]} 5. Nb5 {[%emt 0:00:21]} a6 {[%emt 0:00:03]} 6. Nd6+ {[%emt 0:02:32]} Bxd6 {[%emt 0:00:09]} 7. Qxd6 {[%emt 0:00:07]} Qf6 {[%emt 0:00:04]} 8. Qd1 {[%emt 0:14:05]} Qg6 {[%emt 0:00:13]} 9. Nc3 {[%emt 0:07:25]} d5 {[%emt 0:00:24]} 10. Nxd5 {[%emt 0:12:28]} Qxe4+ {[%emt 0:00:17]} 11. Ne3 {[%emt 0:00:58]} Be6 {[%emt 0:08:00]} 12. Bd3 {[%emt 0:04:44]} Qh4 {[%emt 0:09:11]} 13. c3 {[%emt 0:06:14]} O-O-O {[%emt 0:04:23]} 14. Qe2 {[%emt 0:02:44]} Nge7 {[%emt 0:01:48]} 15. g3 {[%emt 0:09:57]} Qf6 {[%emt 0:11:28]} 16. Ng4 {[%emt 0:05:23]} Bxg4 {[%emt 0:00:18]} 17. Qxg4+ {[%emt 0:00:06]} Kb8 {[%emt 0:00:20]} 18. Bg5 {[%emt 0:03:17]} Qd6 {[%emt 0:03:45]} 19. O-O-O {[%emt 0:01:05]} h5 {[%emt 0:06:52]} 20. Qa4 {[%emt 0:02:52]} Qc7 {[%emt 0:03:34]} 21. Qb3 {[%emt 0:04:36]} f6 {[%emt 0:04:53]} 22. Be3 {[%emt 0:00:17]} Na5 {[%emt 0:03:20]} 23. Qb6 {[%emt 0:01:46]} Nd5 {[%emt 0:00:44]} 24. Qa7+ {[%emt 0:00:35]} 1-0

[Event "26th Abu Dhabi Master 2019"]
[Site "Abu Dhabi"]
[Date "2019.08.05"]
[Round "5.73"]
[White "Adnan, Habib"]
[Black "Thrish Karthik"]
[Result "1-0"]
[ECO "A05"]
[WhiteElo "2197"]
[BlackElo "2075"]
[Annotator "NA"]
[PlyCount "95"]
[EventDate "2019.08.02"]
[EventType "swiss"]
[EventCountry "UAE"]
[SourceTitle "playchess.com"]
[Source "ChessBase"]
[SourceQuality "1"]
[TimeControl "5400+30"]

1. Nf3 Nf6 2. g3 d5 3. Bg2 Bg4 4. b3 Nbd7 5. Bb2 Bxf3 6. Bxf3 e5 7. d3 c6 8. Nd2 Bd6 9. O-O h5 10. e4 d4 11. c3 c5 12. Nc4 Be7 13. cxd4 cxd4 14. a4 Qb8 15. Bg2 Nb6 16. Nd2 a5 17. Nb1 h4 18. Na3 Ra6 19. Nb5 Nbd7 20. Rc1 Rc6 21. h3 Nh5 22. Bf3 Ndf6 23. Kg2 hxg3 24. fxg3 Qc8 25. Rh1 Qd8 26. Na7 Rxc1 27. Bxc1 g6 28. Nb5 Ng7 29. Qc2 Ne6 30. Bd2 Nh5 31. Bg4 Nhg7 32. Rc1 f5 33. exf5 gxf5 34. Bf3 Bc5 35. Re1 Qf6 36. Nc7+ Kf8 37. Nd5 Qg6 38. Rxe5 Nh5 39. Bxh5 Qxh5 40. h4 Rg8 41. Nf6 Rxg3+ 42. Kxg3 Qg6+ 43. Kf3 Qg1 44. Rxe6 Qh1+ 45. Ke2 Qg2+ 46. Kd1 Qf3+ 47. Re2 Qf1+ 48. Be1 1-0

[Event "26th Abu Dhabi Master 2019"]
[Site "Abu Dhabi"]
[Date "2019.08.05"]
[Round "5.74"]
[White "Davainis, Marius"]
[Black "Krzywda, Andrzej"]
[Result "0-1"]
[ECO "A05"]
[WhiteElo "2105"]
[BlackElo "2190"]
[Annotator "NA"]
[PlyCount "100"]
[EventDate "2019.08.02"]
[EventType "swiss"]
[EventCountry "UAE"]
[SourceTitle "playchess.com"]
[Source "ChessBase"]
[SourceQuality "1"]
[TimeControl "5400+30"]

1. Nf3 {[%emt 0:00:00]} Nf6 {[%emt 0:00:00]} 2. b4 {[%emt 0:00:00]} e6 {[%emt 0:01:39]} 3. a3 {[%emt 0:00:00]} d5 {[%emt 0:00:55]} 4. Bb2 {[%emt 0:00:13]} a5 {[%emt 0:01:05]} 5. b5 {[%emt 0:01:08]} Nbd7 {[%emt 0:01:27]} 6. d4 {[%emt 0:00:39]} Nb6 {[%emt 0:02:15]} 7. e3 {[%emt 0:03:23]} Bd6 {[%emt 0:04:39]} 8. Bd3 {[%emt 0:04:26]} O-O {[%emt 0:00:20]} 9. O-O {[%emt 0:00:08]} Na4 {[%emt 0:01:25]} 10. Bc1 {[%emt 0:08:24]} c5 {[%emt 0:06:08]} 11. c4 {[%emt 0:10:22]} Nb6 {[%emt 0:09:19]} 12. Nbd2 {[%emt 0:05:00]} cxd4 {[%emt 0:02:20]} 13. exd4 {[%emt 0:00:54]} dxc4 {[%emt 0:00:43]} 14. Nxc4 {[%emt 0:01:31]} Nxc4 {[%emt 0:01:47]} 15. Bxc4 {[%emt 0:00:08]} Qc7 {[%emt 0:04:34]} 16. Qe2 {[%emt 0:02:36]} b6 {[%emt 0:04:47]} 17. Bb2 {[%emt 0:03:40]} Bb7 {[%emt 0:00:45]} 18. Ne5 {[%emt 0:01:08]} Nd5 {[%emt 0:02:39]} 19. Rfc1 {[%emt 0:10:37]} Qe7 {[%emt 0:02:01]} 20. Qg4 {[%emt 0:07:03]} f5 {[%emt 0:02:14]} 21. Qg3 {[%emt 0:01:56]} f4 {[%emt 0:03:34]} 22. Qh3 {[%emt 0:04:03]} Bxe5 {[%emt 0:03:05]} 23. dxe5 {[%emt 0:00:04]} f3 {[%emt 0:06:40]} 24. g3 {[%emt 0:14:29]} Rad8 {[%emt 0:09:26]} 25. a4 {[%emt 0:03:51]} Rf5 {[%emt 0:05:47]} 26. Ba3 {[%emt 0:03:50]} Qg5 {[%emt 0:03:10]} 27. Bxd5 {[%emt 0:00:38]} Bxd5 {[%emt 0:00:35]} 28. Bd6 {[%emt 0:00:02]} Re8 {[%emt 0:04:09]} 29. Rc3 {[%emt 0:05:45]} Qd2 {[%emt 0:06:50]} 30. Rac1 {[%emt 0:00:51]} h6 {[%emt 0:01:12]} 31. Qf1 {[%emt 0:02:17]} Qd4 {[%emt 0:00:46]} 32. Qd1 {[%emt 0:00:32]} Qg4 {[%emt 0:00:26]} 33. Bc7 {[%emt 0:02:38]} Rh5 {[%emt 0:01:36]} 34. Qf1 {[%emt 0:00:01]} Rh3 {[%emt 0:02:04]} 35. Kh1 {[%emt 0:00:28]} Rf8 {[%emt 0:01:02]} 36. Bxb6 {[%emt 0:00:36]} Rf5 {[%emt 0:00:43]} 37. Rc8+ {[%emt 0:00:29]} Kh7 {[%emt 0:00:07]} 38. Bd8 {[%emt 0:00:47]} Qxg3 {[%emt 0:03:09]} 39. Qg1 {[%emt 0:01:12]} Qg2+ {[%emt 0:02:14]} 40. Qxg2 {[%emt 0:00:02]} fxg2+ {[%emt 0:00:01]} 41. Kg1 {[%emt 0:00:01]} Rfh5 {[%emt 0:00:37]} 42. f3 {[%emt 0:01:26]} Rxh2 {[%emt 0:00:34]} 43. Bb6 {[%emt 0:01:37]} Bxf3 {[%emt 0:00:38]} 44. R8c3 {[%emt 0:01:01]} Bd5 {[%emt 0:00:58]} 45. Be3 {[%emt 0:00:36]} Rh1+ {[%emt 0:00:39]} 46. Kf2 {[%emt 0:00:02]} Rf5+ {[%emt 0:00:28]} 47. Ke2 {[%emt 0:01:13]} Rff1 {[%emt 0:00:26]} 48. Kd2 {[%emt 0:01:05]} g1=Q {[%emt 0:00:46]} 49. Bxg1 {[%emt 0:00:02]} Rhxg1 {[%emt 0:00:14]} 50. Rxf1 {[%emt 0:01:04]} Rxf1 {[%emt 0:00:01]} 0-1

[Event "26th Abu Dhabi Master 2019"]
[Site "Abu Dhabi"]
[Date "2019.08.07"]
[Round "6.5"]
[White "Yakubboev, Nodirbek"]
[Black "Indjic, Aleksandar"]
[Result "1-0"]
[ECO "E11"]
[WhiteElo "2575"]
[BlackElo "2604"]
[Annotator "ChessBase"]
[PlyCount "97"]
[EventDate "2019.08.02"]
[EventType "swiss"]
[EventCountry "UAE"]
[SourceTitle "playchess.com"]
[Source "ChessBase"]
[SourceQuality "1"]
[TimeControl "5400+30"]

1. d4 {[%emt 0:00:00]} Nf6 {[%emt 0:01:11]} 2. c4 {[%emt 0:00:28]} e6 {[%emt 0:00:11]} 3. Nf3 {[%emt 0:00:54]} Bb4+ {[%emt 0:00:51]} 4. Bd2 {[%emt 0:01:35]} a5 {[%emt 0:00:30]} 5. g3 {[%emt 0:01:41]} b6 {[%emt 0:00:07]} 6. Bg2 {[%emt 0:00:05]} Bb7 {[%emt 0:00:07]} 7. O-O {[%emt 0:01:45]} Bxd2 {[%emt 0:01:25]} 8. Qxd2 {[%emt 0:02:26]} O-O {[%emt 0:03:52]} 9. Qf4 {[%emt 0:12:35]} Nh5 {[%emt 0:02:34]} 10. Qh4 {[%emt 0:00:07]} Qxh4 {[%emt 0:01:05]} 11. Nxh4 {[%emt 0:00:04]} Bxg2 {[%emt 0:00:15]} 12. Kxg2 {[%emt 0:00:01]} Nc6 {[%emt 0:04:14]} 13. Nf3 {[%emt 0:05:30]} Nf6 {[%emt 0:00:10]} 14. Nc3 {[%emt 0:00:30]} d6 {[%emt 0:00:12]} 15. Rfd1 {[%emt 0:04:16]} a4 {[%emt 0:03:46]} 16. d5 {[%emt 0:03:24]} Na5 {[%emt 0:07:54]} 17. Nd2 {[%emt 0:06:21]} Rfc8 {[%emt 0:01:34]} 18. b3 {[%emt 0:08:46]} Nb7 {[%emt 0:17:14]} 19. dxe6 {[%emt 0:02:48]} fxe6 {[%emt 0:00:10]} 20. Nxa4 {[%emt 0:00:03]} Rxa4 {[%emt 0:00:07]} 21. bxa4 {[%emt 0:00:03]} Ra8 {[%emt 0:00:08]} 22. a5 {[%emt 0:07:17]} Nxa5 {[%emt 0:01:14]} 23. Rdc1 {[%emt 0:03:04]} Nd7 {[%emt 0:00:27]} 24. Nb3 {[%emt 0:00:30]} Kf7 {[%emt 0:02:49]} 25. Nxa5 {[%emt 0:00:13]} Rxa5 {[%emt 0:00:06]} 26. a4 {[%emt 0:00:10]} Ke7 {[%emt 0:00:21]} 27. f4 {[%emt 0:01:40]} g6 {[%emt 0:07:41]} 28. Rc3 {[%emt 0:04:48]} h5 {[%emt 0:03:10]} 29. Rb3 {[%emt 0:03:49]} Rc5 {[%emt 0:02:44]} 30. Rb4 {[%emt 0:01:28]} e5 {[%emt 0:01:02]} 31. Kf3 {[%emt 0:01:58]} Ke6 {[%emt 0:00:25]} 32. e3 {[%emt 0:01:34]} Kf6 {[%emt 0:01:53]} 33. Ke4 {[%emt 0:02:12]} Ra5 {[%emt 0:00:08]} 34. Rb5 {[%emt 0:01:19]} Ra7 {[%emt 0:00:09]} 35. Kd5 {[%emt 0:09:36]} Ke7 {[%emt 0:00:52]} 36. a5 {[%emt 0:02:56]} Nf6+ {[%emt 0:02:53]} 37. Kc6 {[%emt 0:00:05]} Nd7 {[%emt 0:00:14]} 38. Rbb1 {[%emt 0:01:48]} bxa5 {[%emt 0:23:59]} 39. Rb7 {[%emt 0:00:21]} Rxb7 {[%emt 0:02:03]} 40. Kxb7 {[%emt 0:00:03]} c5 {[%emt 0:04:16]} 41. Rxa5 {[%emt 0:02:45]} Ke6 {[%emt 0:00:06]} 42. Kc6 {[%emt 0:01:11]} Nf6 {[%emt 0:00:37]} 43. Ra8 {[%emt 0:02:19]} Ng4 {[%emt 0:01:53]} 44. Rd8 {[%emt 0:00:52]} e4 {[%emt 0:00:57]} 45. Rxd6+ {[%emt 0:00:20]} Kf7 {[%emt 0:00:23]} 46. Kxc5 {[%emt 0:00:11]} Nxe3 {[%emt 0:00:25]} 47. Rd4 {[%emt 0:00:12]} Nf1 {[%emt 0:00:12]} 48. Rxe4 {[%emt 0:00:06]} Nxh2 {[%emt 0:00:03]} 49. Re3 {[%emt 0:01:11]} 1-0